Cogmind - Beta 16 @@@ ROGUE MODE // 2025.11.05 @ 10:34:33 Player: Mozco Result: Self-destructed Performance ------------- Evolutions (9) 4500 Regions Visited (18) 3600 Robots Destroyed (310) 1550 Value Destroyed (15740) 15740 Prototype IDs (58) 1160 Alien Tech Used (7) 1400 Bonus (8673) 8673 TOTAL SCORE: 36623 Bonus ------- High Alert Combat Kills 2306 Follower Combat Kills 914 Aligned with FarCom 300 Met Imprinter 300 Used Core Reset Matrix 3000 Met Sigix 2000 Friendly Fire -147 Cogmind --------- Core Integrity 1558/1600 Matter 20/300 Energy 350/350 System Corruption 0% Temperature Cool (0) Movement Treading (152) Location -1/Access Parts ------- > --- POWER (2) -------- Quantum Reactor > --- PROPULSION (7) --- Armored Medium Treads Experimental Biometal Medium Treads Myomer Leg > --- UTILITY (4) ------ High-capacity Storage Unit Advanced Target Analyzer Point Defense System > --- WEAPON (12) ------ (None) > --- INVENTORY (20) --- Improved Quantum Reactor Improved Quantum Reactor Advanced Cryofiber Web Experimental Coolant Injector Experimental Coolant Injector Advanced Matter Compressor (0) Trap Reconfigurator Stealth Drone Bay Dimensional Node Initializer Dimensional Node Initializer Transdimensional Reconstructor Transdimensional Reconstructor Latent Energy Streamer Sigix Containment Pod Peak State ------------ > --- POWER ------------ Light Antimatter Reactor Quantum Reactor > --- PROPULSION ------- Advanced Medium Treads Advanced Medium Treads Advanced Medium Treads Advanced Heavy Treads Improved Thunder Leg > --- UTILITY ---------- Advanced Cryofiber Web Advanced Heat Sink High-capacity Storage Unit Advanced Target Analyzer > --- WEAPON ----------- Gamma Rifle Quantum Rifle Enhanced Quantum Rifle Linear Accelerator Heavy Hardcell Cannon Hypercooled Linear Accelerator Hypercooled Linear Accelerator Hypercooled Linear Accelerator Hypercooled Linear Accelerator Field Lobotomy Kit > --- INVENTORY -------- Quantum Reactor Advanced Medium Treads Advanced Cryofiber Web Experimental Coolant Injector Experimental Coolant Injector Advanced Matter Compressor Trap Reconfigurator Dimensional Node Initializer Dimensional Node Initializer Transdimensional Reconstructor Transdimensional Reconstructor Terrabomb Gamma Rifle Gamma Rifle Latent Energy Streamer Field Lobotomy Kit Core Stripper Sigix Containment Pod [Rating: 203] Favorites ----------- Power Enhanced Nuclear Core Engine Improved Ion Engine Power Core Enhanced Nuclear Core Reactor Particle Reactor Propulsion Carbon-fiber Leg Treads Advanced Medium Treads Leg Carbon-fiber Leg Wheel Centrium Wheel Utility High-capacity Storage Unit Device Advanced Heat Sink Storage High-capacity Storage Unit Processor Target Analyzer Hackware Improved System Shield Protection Light Armor Plating Artifact Phase Armor Weapon Heavy Laser Energy Gun Heavy Laser Energy Cannon Nova Cannon Ballistic Gun Light Assault Rifle Ballistic Cannon Hypercooled Linear Accelerator Launcher Heavy Rocket Launcher Special Weapon RU-N14's Throwing Claymores Impact Weapon Core Stripper Build | -11 -10 -9 -9 -9 -8 -8 -7 -6 -6 -6 -6 -5 -5 -4 -3 -3 -2 -1 ------- Run | Yrd Mat Mat Min Exi Min Mat Fac Fac Low Low Zio Pro Fac Fac Res Qua Res Acc Slots Evolved 18 | . . 2 . . . 2 2 2 . . . . 2 2 2 . 2 2 Power 1 | . . . . . . . . . . . . . . 1 . . . . Propulsion 5 | . . 1 . . . 1 . 1 . . . . . 1 . . . 1 Utility 2 | . . 1 . . . . 1 . . . . . . . . . . . Weapon 10 | . . . . . . 1 1 1 . . . . 2 . 2 . 2 1 Parts Attached 284 | 7 2 14 . 1 4 13 31 21 1 4 3 4 10 5 54 88 18 4 Power 27 | 1 . 1 . . . 3 2 1 . 1 . . 1 . 5 9 2 1 Engine 6 | 1 . 1 . . . 3 1 . . . . . . . . . . . Core 5 | . . . . . . . 1 . . 1 . . 1 . 1 1 . . Reactor 16 | . . . . . . . . 1 . . . . . . 4 8 2 1 Propulsion 79 | 2 . 4 . . 2 4 7 7 . 1 . 3 2 1 21 20 3 2 Treads 13 | . . . . . . . . . . . . . . . . 11 . 2 Leg 65 | 2 . 4 . . 2 4 7 7 . 1 . 3 2 1 21 8 3 . Wheel 1 | . . . . . . . . . . . . . . . . 1 . . Hover . | . . . . . . . . . . . . . . . . . . . Flight . | . . . . . . . . . . . . . . . . . . . Utility 78 | 1 2 4 . 1 . 3 12 7 . . 1 . 4 2 7 30 3 1 Device 48 | . 2 3 . . . 3 5 4 . . 1 . 3 . 5 19 2 1 Storage 6 | 1 . . . 1 . . . 1 . . . . . . . 3 . . Processor 9 | . . . . . . . 2 1 . . . . . . 1 4 1 . Hackware 8 | . . . . . . . 3 . . . . . 1 2 . 2 . . Protection 6 | . . 1 . . . . 2 1 . . . . . . 1 1 . . Artifact 1 | . . . . . . . . . . . . . . . . 1 . . Weapon 100 | 3 . 5 . . 2 3 10 6 1 2 2 1 3 2 21 29 10 . Energy Gun 65 | 2 . 5 . . 1 2 8 6 1 2 1 . 3 2 15 10 7 . Energy Cannon 3 | . . . . . . 1 . . . . . . . . . 2 . . Ballistic Gun 1 | 1 . . . . . . . . . . . . . . . . . . Ballistic Cannon 13 | . . . . . . . . . . . . . . . . 12 1 . Launcher 11 | . . . . . 1 . 2 . . . . . . . 3 4 1 . Special Weapon 6 | . . . . . . . . . . . 1 1 . . 3 . 1 . Impact Weapon 1 | . . . . . . . . . . . . . . . . 1 . . Slashing Weapon . | . . . . . . . . . . . . . . . . . . . Piercing Weapon . | . . . . . . . . . . . . . . . . . . . Special Melee Weapon . | . . . . . . . . . . . . . . . . . . . Unidentified Prototypes 28 | . . 2 . . . . 1 3 . . 2 . . . 2 17 1 . Corrupted Parts 11 | . . . . . . 4 1 . . . . . . . 1 5 . . System Corruption 61 | . . . . . . 20 3 . . . . . . . 4 34 . . Parts Lost 115 | . . 4 . . . 4 7 3 1 9 . . 1 2 17 37 27 3 Power 11 | . . 1 . . . . 1 . . 1 . . . . 1 4 3 . Propulsion 37 | . . 2 . . . 2 2 1 . 3 . . . 1 6 12 7 1 Utility 10 | . . 1 . . . 1 2 1 . . . . . . . 3 1 1 Weapon 57 | . . . . . . 1 2 1 1 5 . . 1 1 10 18 16 1 Highest Loss Streak 11 | . . 3 . . . 2 3 2 1 4 . . 1 2 3 8 11 2 To Critical Strikes 1 | . . . . . . . . . . . . . . . . . 1 . Average Backups 16 | 1 3 7 8 9 13 14 14 17 19 13 14 16 18 17 19 18 16 14 Power 1 | . 1 1 1 1 1 1 1 1 1 . . . . 1 1 1 1 2 Propulsion 1 | . . . . . . . 1 1 1 . . . 1 1 3 . 1 . Utility 6 | . . . . 1 2 3 4 6 8 8 8 8 9 7 7 7 5 6 Weapon 5 | . 1 5 7 7 8 7 6 7 8 4 5 7 5 6 5 3 2 1 Tool/Special . | . . . . . . . . . . . . . . . . . . . Unused Backups 27 | . . 1 . . 2 1 11 1 . . . . . . 5 1 . 5 Power 6 | . . . . . 2 . 3 1 . . . . . . . . . . Propulsion 2 | . . . . . . . 2 . . . . . . . . . . . Utility 6 | . . . . . . . 2 . . . . . . . 2 1 . 1 Weapon 9 | . . 1 . . . 1 4 . . . . . . . 3 . . . Tool/Special 4 | . . . . . . . . . . . . . . . . . . 4 Average Slot Usage (%) 93 | . 96 93 100 100 100 94 99 99 100 90 85 91 98 99 96 89 84 28 Engine 2 | . 14 10 11 11 11 9 6 . . . . . . . . . . . Core 2 | . . . . . . . . 3 . 5 6 6 5 9 3 1 . . Reactor 2 | . . . . . . . . 2 6 . . . . . 4 7 6 1 Treads 2 | . . . . . . . . . . . . . . . . 6 18 5 Leg 24 | . 28 28 33 33 33 33 29 32 33 27 20 25 29 31 27 17 1 7 Device 10 | . 10 17 11 11 11 13 10 8 13 13 12 13 10 9 8 8 7 2 Storage 5 | . 14 11 11 11 11 9 7 6 6 6 6 6 5 5 4 4 4 4 Processor 4 | . . . . . . . 6 6 6 6 6 6 5 5 4 3 4 4 Protection 1 | . . 4 11 11 11 1 3 3 . . . . . . . . . . Energy Gun 24 | . 28 21 22 22 21 25 29 31 29 24 21 22 33 33 34 15 9 . Ballistic Cannon 4 | . . . . . . . . . . . . . . . . 12 27 4 Launcher 2 | . . . . . . . . 1 3 4 6 3 . . 2 2 . . Special Weapon 1 | . . . . . . . . . . . 3 5 5 2 2 . 1 . Peak Build Rating 203 | 6 7 15 15 18 20 32 51 66 65 65 65 69 83 96 148 185 203 76 Average Rating 88 | 4 6 11 15 16 18 24 43 59 64 56 60 65 78 90 131 154 188 63 On Entrance 53 | . 6 7 15 15 18 20 30 48 65 65 51 63 69 82 88 132 185 52 Avg Prop Armor Cover (%) 3 | . . . . . . . . . . . . . . . . 1 3 11 Naked Turns . | . . . . . . . . . . . . . . . . . . . Heaviest Build 206 | 13 14 22 22 37 40 47 52 88 72 70 94 75 84 95 122 190 206 70 Greatest Support 190 | 20 20 30 30 30 35 50 50 88 88 88 50 80 80 100 135 190 190 67 Greatest Overweight (x) 8 | 4 . 1 . 1 1 1 1 . . 1 1 1 1 . 1 8 2 1 Average Overweight (x) . | . . . . . 1 . . . . . . . . . . . . . Largest Inventory Capacity 20 | 8 8 8 8 15 15 15 15 20 20 20 20 20 20 20 20 20 20 20 Average Capacity 17 | 7 8 8 8 13 15 15 15 19 20 19 18 20 20 20 20 20 20 20 Most Carried 20 | 2 6 8 8 12 15 15 15 20 20 19 20 20 20 19 20 20 20 19 Average Carried 16 | 1 3 7 8 9 13 14 14 17 19 13 17 19 19 17 19 19 19 17 Final Capacity 20 | 8 8 8 8 15 15 15 15 20 20 15 20 20 20 20 20 20 20 20 Final Carried 20 | 2 6 8 8 12 15 15 15 20 19 13 20 20 20 17 20 20 19 16 Class Distribution -------------------- 39% | Scavenger-Executioner 37% | Scavenger-Gunner 5% | Scavenger-Skirmisher 5% | Scavenger-Mutant 3% | Executioner 3% | Mutant Dominant Class ---------------- Mutant | -10/Materials Mutant | -9/Materials Scavenger-Mutant | -9/Mines Scavenger-Mutant | -9/Exiles Scavenger-Mutant | -8/Mines Scavenger-Skirmisher | -8/Materials Scavenger-Gunner | -7/Factory Scavenger-Gunner | -6/Factory Scavenger-Gunner | -6/Lower Caves Scavenger-Gunner | -6/Lower Caves Scavenger-Gunner | -6/Zion Scavenger-Gunner | -5/Proximity Caves Scavenger-Executioner | -5/Factory Scavenger-Executioner | -4/Factory Scavenger-Executioner | -3/Research Scavenger-Executioner | -3/Quarantine Scavenger-Executioner | -2/Research Scavenger-Mutant | -1/Access Resources | -11 -10 -9 -9 -9 -8 -8 -7 -6 -6 -6 -6 -5 -5 -4 -3 -3 -2 -1 ----------- Run | Yrd Mat Mat Min Exi Min Mat Fac Fac Low Low Zio Pro Fac Fac Res Qua Res Acc Matter Collected 7768 | 270 30 160 . . 112 266 483 638 81 134 50 70 150 120 799 2791 1614 . Remotely . | . . . . . . . . . . . . . . . . . . . Salvage Created 14156 | 92 129 519 42 . 181 984 1364 1711 220 368 . 170 340 465 3347 1789 2435 . Parts 532 | . 4 35 7 . 7 35 55 54 5 17 . 2 4 16 112 56 123 . Haulers Intercepted 10 | . . 2 . . . 1 2 2 . . . . . . 1 . 2 . Recyclers Shooed 10 | . . 2 . . . . . . . . . . 1 . 5 1 1 . Parts Field Recycled . | . . . . . . . . . . . . . . . . . . . Retrieved Matter . | . . . . . . . . . . . . . . . . . . . Parts Self-Destructed 29 | . . . . . . . . . 5 15 . 9 . . . . . . Prevented 6 | . . . . . . . . . . . . 6 . . . . . . Parts Restored 1 | . . . . . . . . . . . . . . . . 1 . . Broken 1 | . . . . . . . . . . . . . . . . 1 . . Kills | -11 -10 -9 -9 -9 -8 -8 -7 -6 -6 -6 -6 -5 -5 -4 -3 -3 -2 -1 ------- Run | Yrd Mat Mat Min Exi Min Mat Fac Fac Low Low Zio Pro Fac Fac Res Qua Res Acc Combat Hostiles Destroyed 238 | . 3 11 3 . 3 15 31 30 5 11 . 3 3 9 44 32 35 . Guns 122 | . 2 11 3 . 1 6 17 16 2 2 . 2 3 8 25 20 4 . Cannons 26 | . . . . . . . . . . . . . . . 1 8 17 . AOE 53 | . . . . . 2 5 9 8 2 7 . . . 1 10 . 9 . Classes Destroyed 17 | 1 1 4 . . 2 2 4 . 1 . . . . . . 1 1 . Worker 13 | . . . . . . 1 . 1 . . . . . . 9 . 2 . Builder 15 | . . . . . 1 1 . . . . . . . . 3 . 10 . Tunneler 3 | . . . . . . 1 . 1 . . . . . . . . 1 . Hauler 10 | . . 2 . . . 1 2 2 . . . . . . 1 . 2 . Recycler 10 | 1 . . . . 1 . . 1 . . . . 1 . 3 1 2 . Carrier 1 | . . . . . . . . . . . . . . . . . 1 . Operator 6 | . . . . . . . 1 1 . . . . . . 2 1 1 . Watcher 13 | . . 2 . . . . 1 3 . . . . . . 4 2 1 . Swarmer 58 | . . 4 3 . . . 12 10 . 4 . 1 1 3 6 5 9 . Grunt 77 | . 3 2 . . 2 12 9 9 2 4 . . 1 4 18 6 5 . Brawler 7 | . . . . . . . 3 1 1 . . 1 . . . . 1 . Protector 1 | . . . . . . . 1 . . . . . . . . . . . Sentry 17 | . . 5 . . . 3 1 3 . . . 1 1 2 . . 1 . Specialist 4 | . . . . . . . . . . . . . . . . 3 1 . Hunter 29 | . . . . . 1 . 1 4 . 2 . . . . 14 2 5 . Programmer 33 | . . . . . . . 4 3 1 . . . . . 5 7 13 . Behemoth 3 | . . . . . . . . . 1 1 . . . . 1 . . . Quarantine Guard 9 | . . . . . . . . . . . . . . . . 9 . . Thug 1 | . . . . . . . . . . . . . 1 . . . . . Best Kill Streak 11 | 1 2 3 3 . 4 4 5 7 3 4 . 1 1 3 10 9 11 . Combat Bots Only 8 | . 2 3 3 . 2 3 5 7 3 4 . 1 1 3 5 8 7 . Max Kills in Single Turn 6 | 1 1 1 1 . 2 2 4 3 1 2 . 1 2 1 5 1 6 . Gunslinging 1 | . . . . . . . 1 1 . . . . . . 1 . . . Exploded 4 | . . . . . 1 2 4 3 1 2 . . . 1 4 . 4 . Melee . | . . . . . . . . . . . . . . . . . . . Uniques/NPCs Destroyed . | . . . . . . . . . . . . . . . . . . . Combat | -11 -10 -9 -9 -9 -8 -8 -7 -6 -6 -6 -6 -5 -5 -4 -3 -3 -2 -1 -------- Run | Yrd Mat Mat Min Exi Min Mat Fac Fac Low Low Zio Pro Fac Fac Res Qua Res Acc Hostile Shots Fired 1667 | . 24 56 14 . 8 60 117 173 13 67 . 16 32 66 286 319 359 57 Missed 554 | . 9 22 6 . 3 22 32 69 4 21 . 6 8 26 91 95 115 25 Hits 1113 | . 15 34 8 . 5 38 85 104 9 46 . 10 24 40 195 224 244 32 Melee 4 | . . . . . . . 4 . . . . . . . . . . . Projectile 1109 | . 15 34 8 . 5 38 81 104 9 46 . 10 24 40 195 224 244 32 Critical Strikes 47 | . . 1 . . . 4 3 2 . . . 1 . 1 9 12 12 2 Part Disruptions 2 | . . . . . . . . . . . . . . . . . 2 . Damage Taken 22527 | . 169 387 69 . 92 652 1570 1565 208 984 . 269 453 482 4178 6159 4769 521 Core 2066 | . 23 42 10 . 13 46 106 263 . 151 . 58 13 19 336 753 191 42 Absorbed by Shields . | . . . . . . . . . . . . . . . . . . . Redirected to Shielding 103 | . . . . . . . . 103 . . . . . . . . . . Ignored by Resistances 65 | . . . . . . . . 65 . . . . . . . . . . Regen/Repaired (Parts) 1106 | . . . . . . . 56 89 . . 805 . . . . 156 . . Core Remaining (%) 78 | 100 90 . . . 83 91 84 . . . . 44 98 98 . 8 86 . Volleys Fired 540 | 5 20 55 8 . 5 33 49 60 10 22 . 8 13 14 85 92 61 . Largest 9 | 2 2 2 2 . 2 3 4 5 5 5 . 4 6 7 8 9 9 . Hottest 697 | 90 90 112 112 . 121 177 261 340 327 327 . 268 419 519 665 697 385 . Shots Fired 2031 | 10 40 108 16 . 6 80 173 251 32 68 . 28 66 62 406 417 268 . Gun 1675 | 10 40 108 16 . 2 74 168 248 28 61 . 26 65 61 390 287 91 . Cannon 306 | . . . . . . 6 1 . . . . . . . . 127 172 . Launcher 37 | . . . . . 4 . 4 3 4 7 . . . . 9 3 3 . Special 13 | . . . . . . . . . . . . 2 1 1 7 . 2 . Kinetic 256 | . . . . . . . . . . . . . . . . 87 169 . Thermal 1648 | 10 40 108 16 . 2 74 168 248 28 61 . 26 64 61 390 306 46 . Explosive 48 | . . . . . 4 . 4 3 4 7 . 2 1 1 16 3 3 . Electromagnetic 77 | . . . . . . 6 1 . . . . . 1 . . 21 48 . Robot Hit Streak 18 | 2 6 9 2 . 3 8 15 18 6 12 . 6 12 7 13 16 11 . Robot Miss Streak 7 | 2 4 4 5 . 1 4 4 7 3 2 . 1 3 4 6 6 7 . Penetration Max . | . . . . . . . . . . . . . . . . . . . Secondary Targets 25 | . 1 1 1 . . . 6 1 . 1 . 1 . 1 8 4 . . Max Gunslinging Chain 2 | . 1 1 1 . . . 2 1 . 1 . 1 . 1 1 1 . . Shots Hit Robots 1186 | 6 23 70 5 . 4 50 110 173 20 54 . 20 43 31 231 235 111 . Core Hits 619 | 2 4 25 3 . 10 29 58 78 15 28 . 8 13 20 134 120 72 . Critical Kills . | . . . . . . . . . . . . . . . . . . . Critical Parts Destroyed . | . . . . . . . . . . . . . . . . . . . Critical Strikes 152 | . 1 9 . . . 5 15 28 3 2 . 3 6 5 34 22 19 . Burn 127 | . 1 9 . . . 5 15 28 3 2 . 3 6 5 33 17 . . Blast 22 | . . . . . . . . . . . . . . . . 5 17 . Corrupt 2 | . . . . . . . . . . . . . . . . . 2 . Sever 1 | . . . . . . . . . . . . . . . 1 . . . Melee Attacks 4 | . . . . . . . . . . . . . . . . 4 . . Kinetic 4 | . . . . . . . . . . . . . . . . 4 . . Impact . | . . . . . . . . . . . . . . . . . . . Slashing . | . . . . . . . . . . . . . . . . . . . Piercing . | . . . . . . . . . . . . . . . . . . . Sneak Attacks . | . . . . . . . . . . . . . . . . . . . Combat Hostiles . | . . . . . . . . . . . . . . . . . . . Follow-up Attacks . | . . . . . . . . . . . . . . . . . . . Damage Inflicted 42272 | 81 269 925 75 . 441 2487 3217 3980 759 2064 . 540 903 988 9024 8909 7610 . Guns 22805 | 81 269 925 75 . 14 705 2127 3251 406 1080 . 400 903 631 5872 4797 1269 . Cannons 6893 | . . . . . . 18 8 . . . . . . . . 2888 3979 . Explosions 12240 | . . . . . 427 1764 1075 717 353 984 . 105 . 357 2971 1125 2362 . Melee 99 | . . . . . . . . . . . . . . . . 99 . . Ramming 19 | . . . . . . . 7 12 . . . . . . . . . . Kinetic 6203 | . . . . . . . . . . . . . . . . 2244 3959 . Thermal 22819 | 81 269 925 75 . 14 765 2127 3312 406 1080 . 400 903 631 5872 5242 717 . Explosive 7614 | . . . . . 427 . 498 656 353 984 . 105 . 357 2971 815 448 . Electromagnetic 5401 | . . . . . . 1722 585 . . . . . . . . 608 2486 . Impact . | . . . . . . . . . . . . . . . . . . . Slashing 216 | . . . . . . . . . . . . 35 . . 181 . . . Piercing . | . . . . . . . . . . . . . . . . . . . Highest Corruption 44 | . . . . . . 37 10 . . . . . . . 5 44 30 . Average Corruption 7 | . . . . . . 7 5 . . . . . . . 1 5 19 . Corruption Purged 26 | . . . . . . . 10 . . . . . . . 6 10 . . Corruption Blocked . | . . . . . . . . . . . . . . . . . . . Effects 174 | . . . . . . 27 26 . . . . . . . 6 61 54 . Message Errors 36 | . . . . . . 8 7 . . . . . . . . 10 11 . Matter Fused 42 | . . . . . . 5 5 . . . . . . . 3 16 13 . Heat Flow Errors 20 | . . . . . . 4 5 . . . . . . . . 8 3 . Energy Discharges 22 | . . . . . . 4 1 . . . . . . . 2 8 7 . Parts Rejected 2 | . . . . . . . . . . . . . . . . . 2 . Parts Fused 1 | . . . . . . . . . . . . . . . . . 1 . Data Loss (minor) 19 | . . . . . . 4 5 . . . . . . . . 7 3 . Data Loss (major) 6 | . . . . . . . 1 . . . . . . . . 3 2 . Misfires 10 | . . . . . . . 2 . . . . . . . 1 3 4 . Alerts 3 | . . . . . . . . . . . . . . . . 1 2 . Misdirections 2 | . . . . . . . . . . . . . . . . . 2 . Weapon Failures 11 | . . . . . . 2 . . . . . . . . . 5 4 . Overload Shots . | . . . . . . . . . . . . . . . . . . . Overflow Damage 697 | . . . . . 4 27 84 . 10 111 . . . . 21 44 396 . Projectiles 388 | . . . . . . . . . . . . . . . . 44 344 . Explosions 309 | . . . . . 4 27 84 . 10 111 . . . . 21 . 52 . Melee . | . . . . . . . . . . . . . . . . . . . Knockbacks 36 | . . . . . . . . . . . . . . . . 9 27 . Impact . | . . . . . . . . . . . . . . . . . . . Kinetic 32 | . . . . . . . . . . . . . . . . 8 24 . Secondary 4 | . . . . . . . . . . . . . . . . 1 3 . Self-Inflicted Damage 608 | . . . . . 33 37 251 137 . . . . . . 57 . 93 . Shots 10 | . . . . . 1 1 4 2 . . . . . . 1 . 1 . Rammed . | . . . . . . . . . . . . . . . . . . . Targets Rammed 2 | . . . . . . . 1 1 . . . . . . . . . . Kicked 2 | . . . . . . . 1 1 . . . . . . . . . . Crushed . | . . . . . . . . . . . . . . . . . . . Highest Temperature 670 | 90 246 132 198 . 63 320 395 451 197 192 . 92 156 415 591 670 304 . Average Temperature 125 | 36 134 29 128 . 22 105 135 131 96 120 . 45 55 107 171 125 103 . Received Heat Transfer 2738 | . 90 111 . . 18 351 291 261 42 81 . 63 57 72 571 541 189 . Effects 27 | . . . . . . . . 1 . . . . . 1 14 11 . . Shutdowns 9 | . . . . . . . . . . . . . . 1 6 2 . . Energy Bleed 1 | . . . . . . . . . . . . . . . 1 . . . Interference 11 | . . . . . . . . 1 . . . . . . 7 3 . . Short Circuit 1 | . . . . . . . . . . . . . . . . 1 . . Damage (minor) 1 | . . . . . . . . . . . . . . . . 1 . . Damage (major) 3 | . . . . . . . . . . . . . . . . 3 . . Damage (core) 1 | . . . . . . . . . . . . . . . . 1 . . Siege Activations . | . . . . . . . . . . . . . . . . . . . Martial Activations . | . . . . . . . . . . . . . . . . . . . Shielding Activations . | . . . . . . . . . . . . . . . . . . . Robots Disrupted . | . . . . . . . . . . . . . . . . . . . Combat Hostiles . | . . . . . . . . . . . . . . . . . . . Robots Corrupted 13 | . . . . . . 4 3 . . . . . . . . . 6 . Combat Hostiles 12 | . . . . . . 4 3 . . . . . . . . . 5 . Parts Fried 28 | . . . . . . 10 4 . . . . . . . . 1 13 . Impact Corruptions 1 | . . . . . . . . . . . . . . . . . 1 . Robots Melted 29 | . 1 . . . . . 2 9 1 2 . 1 . . 11 2 . . Combat Hostiles 23 | . 1 . . . . . 2 6 1 2 . 1 . . 8 2 . . Parts Melted 164 | . 1 4 . . . 3 23 28 6 9 . 1 6 1 58 24 . . Heat Transferred 50813 | 223 793 3088 185 . 37 2159 5284 8763 1040 2199 . 1036 2146 1517 12869 8610 864 . Parts Sabotaged . | . . . . . . . . . . . . . . . . . . . Parts Stolen . | . . . . . . . . . . . . . . . . . . . Parts Stripped 27 | . . . . . . . . . . . . . . . . 27 . . Power Chain Reactions 3 | . . . . . . 1 . . . . . . . . . . 2 . Latent Energy Used 1922 | . . . . . . 1076 200 . . . . . . . . 69 577 . LE Corruption 31 | . . . . . . 17 3 . . . . . . . . 2 9 . Alert | -11 -10 -9 -9 -9 -8 -8 -7 -6 -6 -6 -6 -5 -5 -4 -3 -3 -2 -1 ------- Run | Yrd Mat Mat Min Exi Min Mat Fac Fac Low Low Zio Pro Fac Fac Res Qua Res Acc Maximum Alert Level 4 | . . . . . . 2 2 2 . . . . 1 1 2 2 4 3 Low Security (%) 26 | 100 100 100 100 . 100 51 20 . . . . . 79 93 27 1 . . Level 1 33 | . . . . . . 7 24 79 . . . . 20 6 33 45 8 . Level 2 34 | . . . . . . 41 55 20 . . . . . . 39 52 15 . Level 3 3 | . . . . . . . . . . . . . . . . . 37 100 Level 4 2 | . . . . . . . . . . . . . . . . . 38 . Level 5 . | . . . . . . . . . . . . . . . . . . . High Security . | . . . . . . . . . . . . . . . . . . . Max Security . | . . . . . . . . . . . . . . . . . . . Peak Influence 1476 | 5 55 135 71 . 133 557 616 690 . . . . 324 216 653 584 1476 804 Initial 804 | . 3 5 . . . 24 245 300 . . . . 53 137 108 359 324 804 Average 364 | . 26 62 33 . 59 265 384 354 . . . . 107 135 340 408 934 780 Influence Increases 10022 | 5 90 339 81 . 163 965 1045 1006 130 260 . 355 560 337 1615 1323 1748 . Destroy 0b10 Robot/C 5220 | . 60 220 60 . 80 300 600 600 100 220 . 200 240 180 880 640 840 . Destroy 0b10 Robot/NC 365 | 5 . 20 . . 10 20 25 45 . . . . 5 . 110 20 105 . Destroy Leader 1186 | . 10 78 10 . 20 72 126 148 30 40 . 30 70 40 170 174 168 . Allied During Kill 257 | . . . 11 . 11 . . . . . . 125 81 . . . 29 . Trap Triggered on 0b10 120 | . . . . . . . 30 . . . . . . . 50 40 . . Successful Hack 368 | . 5 21 . . . 40 40 48 . . . . . 24 56 122 12 . Disable Machine 615 | . . . . . . 105 105 90 . . . . 60 15 . 135 105 . Anti-Garrison Action 200 | . . . . . . 200 . . . . . . . . . . . . Destroy Structure 1346 | . . . . . 42 183 89 75 . . . . 104 18 274 132 429 . Lose Combat Pursuer 345 | . 15 . . . . 45 30 . . . . . . 60 75 60 60 . Influence Decreases 9288 | . 80 354 30 51 100 489 971 941 432 496 140 270 363 411 1184 1384 986 606 Entered New Map 2520 | . 2 10 . 51 . 39 294 313 252 72 140 . 32 145 100 280 254 536 Time Decay 5029 | . 78 205 30 . 40 410 607 598 170 334 . 230 271 246 614 734 422 40 Lost Part 1140 | . . 40 . . . 40 70 30 10 90 . . . 20 170 370 270 30 Lost Ally 200 | . . . . . 60 . . . . . . 40 60 . . . 40 . Purge Threat 399 | . . 99 . . . . . . . . . . . . 300 . . . Squads Dispatched 45 | . 1 1 . . . 3 8 7 . . . . 2 . 7 6 10 . Investigation 6 | . . . . . . 2 . 2 . . . . 1 . . 1 . . Extermination 15 | . . . . . . . 3 3 . . . . 1 . 2 3 3 . Reinforcement 20 | . 1 1 . . . . 4 2 . . . . . . 4 2 6 . Assault 2 | . . . . . . . 1 . . . . . . . . . 1 . Garrison 2 | . . . . . . 1 . . . . . . . . 1 . . . Intercept . | . . . . . . . . . . . . . . . . . . . Searches Triggered . | . . . . . . . . . . . . . . . . . . . Construction Impeded 7 | . . . . . . . . 1 . . . . . . 3 . 3 . Haulers Reinforced 6 | . . . . . . . 2 1 . . . . . . 1 . 2 . Active Scanning Responses . | . . . . . . . . . . . . . . . . . . . Cargo Convoy Interrupts . | . . . . . . . . . . . . . . . . . . . Stealth | -11 -10 -9 -9 -9 -8 -8 -7 -6 -6 -6 -6 -5 -5 -4 -3 -3 -2 -1 --------- Run | Yrd Mat Mat Min Exi Min Mat Fac Fac Low Low Zio Pro Fac Fac Res Qua Res Acc Distress Signals 14 | . . 2 . . . . 1 1 . . . . 1 1 5 . 2 1 Communications Jammed 6 | . . . . . . . . . . . . . . . . 6 . . Distress Signals 6 | . . . . . . . . . . . . . . . . 6 . . Times Spotted 361 | . 7 15 3 . 4 17 37 41 5 10 . 10 16 15 59 55 58 9 Peak Tracking Total 12 | . 3 3 2 . 3 3 5 5 3 4 . 5 4 7 7 12 6 9 Tactical Retreats 19 | . 1 . . . . 2 2 . . . . . . 4 4 4 2 . Traps | -11 -10 -9 -9 -9 -8 -8 -7 -6 -6 -6 -6 -5 -5 -4 -3 -3 -2 -1 ------- Run | Yrd Mat Mat Min Exi Min Mat Fac Fac Low Low Zio Pro Fac Fac Res Qua Res Acc Traps Triggered 6 | . . . . . . 1 1 2 . . . . . . 1 1 . . Indirectly . | . . . . . . . . . . . . . . . . . . . Trap Hack Attempts . | . . . . . . . . . . . . . . . . . . . Triggered . | . . . . . . . . . . . . . . . . . . . Disarmed . | . . . . . . . . . . . . . . . . . . . Reprogrammed . | . . . . . . . . . . . . . . . . . . . Reused 12 | . . . . . . . 3 . . . . . . . 5 4 . . Traps Reconfigurated 56 | . . . . . . 4 24 12 . . . . . 1 11 4 . . Traps Extracted . | . . . . . . . . . . . . . . . . . . . Installed . | . . . . . . . . . . . . . . . . . . . Triggered 12 | . . . . . . . 3 . . . . . . . 5 4 . . Machines | -11 -10 -9 -9 -9 -8 -8 -7 -6 -6 -6 -6 -5 -5 -4 -3 -3 -2 -1 ---------- Run | Yrd Mat Mat Min Exi Min Mat Fac Fac Low Low Zio Pro Fac Fac Res Qua Res Acc Machines Disabled 41 | . . . . . . 7 7 6 . . . . 4 1 . 9 7 . Max in Single Turn 7 | . . . . . . 2 7 4 . . . . 2 1 . 1 1 . Garrison Access 5 | . . . . . . 1 . 1 . . . . 1 1 1 . . . Machines Repaired . | . . . . . . . . . . . . . . . . . . . Machines Dismantled . | . . . . . . . . . . . . . . . . . . . Machines Sabotaged . | . . . . . . . . . . . . . . . . . . . Overloaded Fab Kills . | . . . . . . . . . . . . . . . . . . . Hacking | -11 -10 -9 -9 -9 -8 -8 -7 -6 -6 -6 -6 -5 -5 -4 -3 -3 -2 -1 --------- Run | Yrd Mat Mat Min Exi Min Mat Fac Fac Low Low Zio Pro Fac Fac Res Qua Res Acc Machines Accessed 70 | . 1 5 . 2 . 6 8 13 . . . . 4 4 10 15 2 . Terminals 34 | . 1 4 . . . 5 2 4 . . . . 1 . 5 11 1 . Fabricators 5 | . . . . . . . . 5 . . . . . . . . . . Repair Stations 9 | . . . . . . . 2 1 . . . . 1 . 2 2 1 . Recycling Units 3 | . . . . . . . 1 . . . . . . 2 . . . . Scanalyzers 10 | . . 1 . . . . 2 2 . . . . . 1 2 2 . . Garrison Access 7 | . . . . . . 1 1 1 . . . . 2 1 1 . . . Total Hacks 171 | . 2 23 . 2 . 16 17 32 . . . . 7 7 27 33 5 . Successful 91 | . 1 16 . 2 . 11 7 15 . . . . 1 6 15 16 1 . Failed 79 | . 1 6 . . . 5 10 17 . . . . 6 1 12 17 4 . Catastrophic 16 | . . 1 . . . 2 3 2 . . . . . . 2 5 1 . Database Lockouts 1 | . . 1 . . . . . . . . . . . . . . . . Manual 42 | . 2 6 . 1 . 10 5 4 . . . . . 1 4 9 . . Terminals 92 | . 2 12 . . . 14 6 12 . . . . 1 . 18 24 3 . Fabricators 11 | . . . . . . . . 11 . . . . . . . . . . Repair Stations 20 | . . . . . . . 4 3 . . . . 2 . 4 5 2 . Recycling Units 7 | . . . . . . . 3 . . . . . . 4 . . . . Scanalyzers 27 | . . 11 . . . . 3 4 . . . . . 2 3 4 . . Garrison Access 12 | . . . . . . 2 1 2 . . . . 4 1 2 . . . Terminal Hacks 39 | . . 5 . 2 . 8 1 4 . . . . . . 11 8 . . Record 5 | . . . . 1 . . . . . . . . . . . 4 . . Part Schematic 1 | . . . . . . . . . . . . . . . . 1 . . Robot Analysis 10 | . . 3 . . . 5 . 1 . . . . . . 1 . . . Prototype ID Bank 6 | . . . . . . 3 . 1 . . . . . . 2 . . . Open Door 1 | . . . . . . . . . . . . . . . . 1 . . Branch Access Points 1 | . . . . . . . . . . . . . . . 1 . . . Alert Level 3 | . . . . . . . . 1 . . . . . . 2 . . . Unreport Threat 3 | . . 1 . . . . . . . . . . . . 2 . . . Locate Traps 2 | . . . . . . . 1 . . . . . . . . 1 . . Surveillance Status 1 | . . 1 . . . . . . . . . . . . . . . . Recall Reinforcements 1 | . . . . . . . . . . . . . . . 1 . . . Hauler Manifests 2 | . . . . . . . . . . . . . . . 1 1 . . Registered Components 1 | . . . . . . . . 1 . . . . . . . . . . Zone Layout 1 | . . . . . . . . . . . . . . . 1 . . . Proto ID Catalog 1 | . . . . 1 . . . . . . . . . . . . . . Fabricator Hacks 5 | . . . . . . . . 5 . . . . . . . . . . Network Status 1 | . . . . . . . . 1 . . . . . . . . . . Load Schematic 2 | . . . . . . . . 2 . . . . . . . . . . Build 2 | . . . . . . . . 2 . . . . . . . . . . Repair Station Hacks 8 | . . . . . . . 2 2 . . . . . . 1 2 1 . Scan Component 5 | . . . . . . . 1 1 . . . . . . 1 1 1 . Repair 3 | . . . . . . . 1 1 . . . . . . . 1 . . Recycling Unit Hacks 2 | . . . . . . . . . . . . . . 2 . . . . Report Inventory 1 | . . . . . . . . . . . . . . 1 . . . . Retrieve Components 1 | . . . . . . . . . . . . . . 1 . . . . Scanalyzer 20 | . . 10 . . . . 2 1 . . . . . 2 2 3 . . Insert Component 11 | . . 5 . . . . 1 1 . . . . . 1 1 2 . . Analyze 9 | . . 5 . . . . 1 . . . . . . 1 1 1 . . Garrison Access Hacks 4 | . . . . . . . . 1 . . . . 1 1 1 . . . Seal Access 4 | . . . . . . . . 1 . . . . 1 1 1 . . . Unauthorized Hacks 13 | . 1 1 . . . 3 2 2 . . . . . 1 . 3 . . Terminals 9 | . 1 1 . . . 2 1 1 . . . . . . . 3 . . Botnet 7 | . 1 1 . . . 1 1 1 . . . . . . . 2 . . Operators 2 | . . . . . . 1 . . . . . . . . . 1 . . Fabricators 1 | . . . . . . . . 1 . . . . . . . . . . Report 1 | . . . . . . . . 1 . . . . . . . . . . Repair Stations . | . . . . . . . . . . . . . . . . . . . Recycling Units 2 | . . . . . . . 1 . . . . . . 1 . . . . Reject 1 | . . . . . . . 1 . . . . . . . . . . . Recyclers 1 | . . . . . . . . . . . . . . 1 . . . . Scanalyzers . | . . . . . . . . . . . . . . . . . . . Garrison Access 1 | . . . . . . 1 . . . . . . . . . . . . Jam 1 | . . . . . . 1 . . . . . . . . . . . . Data Cores Recovered 4 | . . . . . . . . 1 . . . . . . 2 . 1 . Used . | . . . . . . . . . . . . . . . . . . . Hacking Detections 62 | . 1 4 . . . 6 8 12 . . . . 3 3 10 13 2 . Full Trace Events 3 | . . . . . . . . 2 . . . . 1 . . . . . Feedback Events . | . . . . . . . . . . . . . . . . . . . Feedback Blocked . | . . . . . . . . . . . . . . . . . . . Robot Schematics Acquired . | . . . . . . . . . . . . . . . . . . . Robots Built . | . . . . . . . . . . . . . . . . . . . Authchips . | . . . . . . . . . . . . . . . . . . . Time . | . . . . . . . . . . . . . . . . . . . Total Robot Build Rating . | . . . . . . . . . . . . . . . . . . . Part Schematics Acquired 10 | . . 5 . . . . 1 . . . . . . 1 1 2 . . Parts Built 2 | . . . . . . . . 2 . . . . . . . . . . Authchips . | . . . . . . . . . . . . . . . . . . . Time 232 | . . . . . . . . 232 . . . . . . . . . . Total Part Build Rating 6 | . . . . . . . . 6 . . . . . . . . . . Part Studies Acquired . | . . . . . . . . . . . . . . . . . . . Parts Repaired 3 | . . . . . . . 1 1 . . . . . . . 1 . . Time 94 | . . . . . . . 44 19 . . . . . . . 31 . . Parts Recycled . | . . . . . . . . . . . . . . . . . . . Recycled Matter . | . . . . . . . . . . . . . . . . . . . Retrieved Matter . | . . . . . . . . . . . . . . . . . . . Retrieved Components . | . . . . . . . . . . . . . . . . . . . Parts Scanalyzed 10 | . . 5 . . . . 1 1 . . . . . 1 1 1 . . Part Schematics Acquired 9 | . . 5 . . . . 1 . . . . . . 1 1 1 . . Parts Damaged 1 | . . 1 . . . . . . . . . . . . . . . . Bothacking | -11 -10 -9 -9 -9 -8 -8 -7 -6 -6 -6 -6 -5 -5 -4 -3 -3 -2 -1 ------------ Run | Yrd Mat Mat Min Exi Min Mat Fac Fac Low Low Zio Pro Fac Fac Res Qua Res Acc Used RIF Installer . | . . . . . . . . . . . . . . . . . . . Robots Hacked . | . . . . . . . . . . . . . . . . . . . Non-combat . | . . . . . . . . . . . . . . . . . . . Combat . | . . . . . . . . . . . . . . . . . . . Robot Hacks Applied . | . . . . . . . . . . . . . . . . . . . Relay Couplers Released 4 | . . . . . . 2 . . . . . . . . 2 . . . Machine Destruction 4 | . . . . . . 2 . . . . . . . . 2 . . . Fabnet Peak Effective % . | . . . . . . . . . . . . . . . . . . . Robots Rewired . | . . . . . . . . . . . . . . . . . . . Allies Hacked . | . . . . . . . . . . . . . . . . . . . Hacks Repelled . | . . . . . . . . . . . . . . . . . . . Allies | -11 -10 -9 -9 -9 -8 -8 -7 -6 -6 -6 -6 -5 -5 -4 -3 -3 -2 -1 -------- Run | Yrd Mat Mat Min Exi Min Mat Fac Fac Low Low Zio Pro Fac Fac Res Qua Res Acc Total Allies 12 | . . . 3 . . . . . . . 7 . . . . . 2 . Largest Group 7 | . . . 3 3 3 . . . . . 7 7 5 . . . 1 . Highest-Rated Group 199 | . . . 40 40 40 . . . . . 199 199 157 . . . 183 . Highest-Rated Ally 183 | . . . 16 16 16 . . . . . 39 39 39 . . . 183 . Total Orders . | . . . . . . . . . . . . . . . . . . . Ally Attacks 160 | . . . . . 11 . . . . . . 40 67 . . . 42 . Total Damage 3113 | . . . . . 135 . . . . . . 545 772 . . . 1661 . Kills 26 | . . . . . 1 . . . . . . 7 10 . . . 8 . Allies Corrupted 1 | . . . . . . . . . . . . . . . . . 1 . Allies Melted . | . . . . . . . . . . . . . . . . . . . Field Lobotomies 2 | . . . . . . . . . . . . . . . . . 2 . Intel | -11 -10 -9 -9 -9 -8 -8 -7 -6 -6 -6 -6 -5 -5 -4 -3 -3 -2 -1 ------- Run | Yrd Mat Mat Min Exi Min Mat Fac Fac Low Low Zio Pro Fac Fac Res Qua Res Acc Active Infowar (turns) 1047 | . 128 362 . . . . . 1 . . . . . . . 556 . . Optics 1 | . . . . . . . . . . . . . . . . 1 . . Sensors 491 | . 128 362 . . . . . 1 . . . . . . . . . . Terrain 1 | . . . . . . . . . . . . . . . . 1 . . Jamming 554 | . . . . . . . . . . . . . . . . 554 . . Robot Analysis Total 10 | . . 3 . . . 5 . 1 . . . . . . 1 . . . Derelict Logs Recovered 6 | . . . 1 . . . . . 1 . 2 2 . . . . . . Drone Launches . | . . . . . . . . . . . . . . . . . . . Drone Recoveries . | . . . . . . . . . . . . . . . . . . . Exploration | -11 -10 -9 -9 -9 -8 -8 -7 -6 -6 -6 -6 -5 -5 -4 -3 -3 -2 -1 ------------- Run | Yrd Mat Mat Min Exi Min Mat Fac Fac Low Low Zio Pro Fac Fac Res Qua Res Acc Turns Passed 18244 | 73 210 616 108 509 134 982 1974 1909 349 755 2086 488 697 533 2024 3679 1036 82 Spaces Moved 9758 | 35 117 322 69 294 59 563 1061 1195 254 435 1100 292 353 354 1174 1673 362 46 Core 16 | 16 . . . . . . . . . . . . . . . . . . Treads 916 | . . . . . . . . . . . . . . . . 538 345 33 Legs 8826 | 19 117 322 69 294 59 563 1061 1195 254 435 1100 292 353 354 1174 1135 17 13 Wheels . | . . . . . . . . . . . . . . . . . . . Hover . | . . . . . . . . . . . . . . . . . . . Flight . | . . . . . . . . . . . . . . . . . . . Fastest Speed 50 | 50 120 120 120 120 190 120 120 120 124 122 123 122 122 121 114 110 120 120 Average Speed 151 | 134 120 124 120 171 190 136 150 122 124 156 186 153 168 121 118 173 203 163 Slowest Speed 810 | 250 120 190 120 190 190 190 190 124 124 192 193 193 192 121 192 810 305 232 Overloaded Moves . | . . . . . . . . . . . . . . . . . . . Propulsion Burnouts . | . . . . . . . . . . . . . . . . . . . Robots Hopped . | . . . . . . . . . . . . . . . . . . . Potential Cave-ins 7 | . . . . . . . . . . . . . 2 . 2 3 . . Cave-ins Triggered . | . . . . . . . . . . . . . . . . . . . Teleports 2 | . . . . . . . . . . . . . . . . 2 . . Exploration Rate (%) 34 | 3 19 29 21 70 18 34 29 34 53 55 85 52 11 9 30 86 10 4 Regions Visited 18 Branch Regions 8 Pre-discovered Areas 2 | . . . . 1 . . . . . . 1 . . . . . . . Known Exits Taken 2 | . . . . . . . . . . . . . 1 . 1 . . . Unknown Exits Taken 16 | 1 1 1 1 1 1 1 1 1 1 1 1 1 . 1 . 1 1 . Scrap Searched 4 | . . . . . . . . . 1 1 1 1 . . . . . . Spaces Dug 95 | . . . . . . 51 . . . . . . . . 44 . . . Terrain Destroyed 1156 | . . . . . 62 258 107 83 40 109 . 22 53 10 198 76 138 . Melee . | . . . . . . . . . . . . . . . . . . . Projectile 120 | . . . . . . . . . . . . 1 3 4 3 50 59 . AOE 1036 | . . . . . 62 258 107 83 40 109 . 21 50 6 195 26 79 . Terrain Rammed . | . . . . . . . . . . . . . . . . . . . Walls Destroyed . | . . . . . . . . . . . . . . . . . . . Machines Disabled . | . . . . . . . . . . . . . . . . . . . Actions | -11 -10 -9 -9 -9 -8 -8 -7 -6 -6 -6 -6 -5 -5 -4 -3 -3 -2 -1 --------- Run | Yrd Mat Mat Min Exi Min Mat Fac Fac Low Low Zio Pro Fac Fac Res Qua Res Acc Total 11992 | 48 145 430 78 299 78 707 1331 1479 266 464 1134 311 421 421 1610 2215 504 51 Wait 841 | . 2 20 2 . . 75 116 136 . 1 16 1 21 40 210 172 29 . Move 9741 | 34 116 321 68 293 58 562 1060 1195 253 434 1099 291 352 353 1173 1672 361 46 Hop . | . . . . . . . . . . . . . . . . . . . Pick Up 148 | 1 4 6 . 4 5 5 24 13 . . 8 3 9 . 20 36 10 . Fast Attach 163 | 7 1 8 . . . 3 8 12 . . 2 2 3 1 22 79 13 2 Attach 84 | . . 3 . . . 5 9 4 1 6 1 1 2 4 12 26 7 3 Detach 13 | 1 . 1 . . . . . . . . 1 . . 1 2 7 . . Swap 223 | . 2 5 . 1 5 17 35 34 2 1 5 2 9 8 43 41 13 . Drop 229 | . . 11 . 1 5 7 29 20 . . 2 3 12 . 43 86 10 . Fire 540 | 5 20 55 8 . 5 33 49 60 10 22 . 8 13 14 85 92 61 . Melee 4 | . . . . . . . . . . . . . . . . 4 . . Ram . | . . . . . . . . . . . . . . . . . . . Kick 1 | . . . . . . . 1 . . . . . . . . . . . Crush . | . . . . . . . . . . . . . . . . . . . Escape Stasis 5 | . . . . . . . . 5 . . . . . . . . . . Rewire . | . . . . . . . . . . . . . . . . . . . Trap . | . . . . . . . . . . . . . . . . . . . Miscellaneous . | . . . . . . . . . . . . . . . . . . . Route ------- -11/Scrapyard -10/Materials -9/Materials (discovered 2 exits: *Mat / [*Min]) -9/Mines -9/Exiles (discovered 2 exits: [*Min x2]) -8/Mines -8/Materials -7/Factory -6/Factory (discovered 2 exits: [*Low] / *Ext) -6/Lower Caves -6/Lower Caves (discovered 2 exits: *Fac / [*Zio]) -6/Zion -5/Proximity Caves -5/Factory (discovered 5 exits: *Fac x3 / *Upp x2) -4/Factory -3/Research (discovered 3 exits: Arm / *Qua x2) -3/Quarantine -2/Research -1/Access History --------- Turn | Location | Event 7 | -11/Scrapyard | Discovered new exit (range 16) 74 | -11/Scrapyard | Entered Materials 279 | -10/Materials | Discovered new exit (range 4) 284 | -10/Materials | Entered another Materials area 284 | -9/Materials | Evolved 2 slots: Propulsion x1, Utility x1 306 | -9/Materials | Build established: Mutant 509 | -9/Materials | Lost 3 parts (2n1u) 535 | -9/Materials | Discovered new exit (range 16) 781 | -9/Materials | Discovered new exit (range 16) 825 | -9/Materials | Central database locked down 900 | -9/Materials | Entered Mines 915 | -9/Mines | Assisted by bots powering up and referring to "LRC-V3" 938 | -9/Mines | Learned 2 Materials zone layouts 950 | -9/Mines | Build established: Scavenger-Mutant 1001 | -9/Mines | Deemed a non-threat by the Exiles lab entrance 1001 | -9/Mines | Discovered new exit (range 5) 1008 | -9/Mines | Entered Exiles 1008 | -9/Exiles | Accompanied by 3 allies 1026 | -9/Exiles | Discovered new exit (range 15) 1038 | -9/Exiles | Met 8R-AWN 1058 | -9/Exiles | Met EX-HEX 1148 | -9/Exiles | Met EX-DEC 1180 | -9/Exiles | Learned location of Zion (-6) 1237 | -9/Exiles | Met EX-BIN 1258 | -9/Exiles | Aligned with FarCom system 1260 | -9/Exiles | Given EX-Vault access code 1304 | -9/Exiles | Opened EX-Vault 1319 | -9/Exiles | Found Latent Energy Streamer 1322 | -9/Exiles | Found Trap Reconfigurator 1328 | -9/Exiles | Found Field Lobotomy Kit 1364 | -9/Exiles | Warned to stay clear of 0b10 Research branches 1493 | -9/Exiles | Discovered new exit (range 14) 1517 | -9/Exiles | Stole three prototypes: Trap Reconfigurator, Latent Energy Streamer, Field Lobotomy Kit 1517 | -9/Exiles | Entered Mines 1517 | -8/Mines | Accompanied by 3 allies 1636 | -8/Mines | Lost 3 allies 1645 | -8/Mines | Discovered new exit (range 3) 1651 | -8/Mines | Entered Materials 1651 | -8/Materials | Evolved 2 slots: Propulsion x1, Weapon x1 1797 | -8/Materials | Garrison activated, responded to threat 1841 | -8/Materials | Build established: Scavenger-Skirmisher 1884 | -8/Materials | Discovered new exit (range 11) 2258 | -8/Materials | System corruption reached 10% 2632 | -8/Materials | System corruption reached 30% 2633 | -8/Materials | Entered Factory 2633 | -7/Factory | Evolved 2 slots: Utility x1, Weapon x1 2635 | -7/Factory | FarCom data flow suspended 3170 | -7/Factory | Build established: Scavenger-Gunner 3535 | -7/Factory | Lost 3 parts (1n1u1w) 3833 | -7/Factory | First assault squad dispatched 3959 | -7/Factory | System corruption reached 10% 4469 | -7/Factory | Repaired Coolant Injector 4505 | -7/Factory | Discovered new exit (range 15) 4607 | -7/Factory | Entered another Factory area 4607 | -6/Factory | Evolved 2 slots: Propulsion x1, Weapon x1 4911 | -6/Factory | Fabricated Prc. Beam Rifle (x1) 5813 | -6/Factory | Discovered new exit (range 15) 5986 | -6/Factory | Identified exit to Extension 6182 | -6/Factory | Repaired Carbon-fiber Leg 6247 | -6/Factory | Build established: Gunner 6305 | -6/Factory | Discovered new exit (range 16) 6390 | -6/Factory | Fabricated Prc. Beam Rifle (x1) 6453 | -6/Factory | Destroyed 7 combat bots 6516 | -6/Factory | Entered Lower Caves 6680 | -6/Lower Caves | Encountered a Warlord checkpoint 6698 | -6/Lower Caves | Build established: Scavenger-Gunner 6746 | -6/Lower Caves | Spotted B-75 Beast 6754 | -6/Lower Caves | Destroyed B-75 Beast 6863 | -6/Lower Caves | Discovered new exit (range 2) 6865 | -6/Lower Caves | Entered another Lower Caves area 6886 | -6/Lower Caves | Discovered new exit (range 9) 6895 | -6/Lower Caves | Spotted B-75 Beast 6928 | -6/Lower Caves | Destroyed B-75 Beast 6954 | -6/Lower Caves | Lost 4 parts (1p1n2w) 7538 | -6/Lower Caves | Discovered new exit (range 7) 7620 | -6/Lower Caves | Entered Zion 7682 | -6/Zion | Found Prototype Device 7765 | -6/Zion | Identified Phasing AFG 8351 | -6/Zion | Found Prototype Special Weapon 8351 | -6/Zion | Identified RU-N14's Throwing Claymores 8356 | -6/Zion | Found RU-N14's Throwing Claymores 8358 | -6/Zion | Found RU-N14's Throwing Claymores 8361 | -6/Zion | Found RU-N14's Throwing Claymores 8430 | -6/Zion | Met Imprinter 8594 | -6/Zion | Gained Derelict followers 8670 | -6/Zion | Learned Factory non-interactive machine intel 8734 | -6/Zion | Visited the Megawrench Repair Shop 8788 | -6/Zion | Gained Derelict followers 9313 | -6/Zion | Megawrench repaired 10 parts 9469 | -6/Zion | Discovered new exit (range 10) 9706 | -6/Zion | Entered Proximity Caves 9706 | -5/Proximity Caves | Accompanied by 7 allies 9736 | -5/Proximity Caves | Spotted B-75 Beast 9742 | -5/Proximity Caves | Allies destroyed B-75 Beast 9806 | -5/Proximity Caves | Learned Factory emergency access door positions 9815 | -5/Proximity Caves | Attracted the attention of an 0b10 checkpoint 9974 | -5/Proximity Caves | Core integrity fell below 50% 10178 | -5/Proximity Caves | Discovered new exit (range 9) 10190 | -5/Proximity Caves | Learned 12 Factory zone layouts 10194 | -5/Proximity Caves | Entered Factory 10194 | -5/Factory | Accompanied by 5 allies 10194 | -5/Factory | Evolved 2 slots: Weapon x2 10195 | -5/Factory | Identified exit to Upper Caves 10196 | -5/Factory | Identified exit to Factory 10198 | -5/Factory | Loaded intel: 218 non-interactive machine locations 10379 | -5/Factory | Spotted B-75 Beast 10392 | -5/Factory | Allies destroyed B-75 Beast 10499 | -5/Factory | Build established: Scavenger-Executioner 10558 | -5/Factory | Discovered exit to Upper Caves (range 5) 10833 | -5/Factory | Lost 3 allies 10860 | -5/Factory | Discovered exit to Factory (range 15) 10891 | -5/Factory | Entered another Factory area 10891 | -4/Factory | Evolved 2 slots: Power x1, Propulsion x1 11313 | -4/Factory | Discovered new exit (range 4) 11424 | -4/Factory | Entered Research 11424 | -3/Research | Evolved 2 slots: Weapon x2 11518 | -3/Research | Lost 3 parts (1p1n1w) 11790 | -3/Research | Garrison activated, responded to threat 12159 | -3/Research | Spotted B-86 Titan 12165 | -3/Research | Destroyed B-86 Titan 13263 | -3/Research | Identified exit to Armory 13263 | -3/Research | Identified exit to Quarantine 13434 | -3/Research | Spotted B-90 Cyclops 13448 | -3/Research | Entered Quarantine 13504 | -3/Quarantine | Repaired Myomer Leg 13734 | -3/Quarantine | Found Alien Artifact 13734 | -3/Quarantine | Identified Terrabomb 13734 | -3/Quarantine | Used Terrabomb 13748 | -3/Quarantine | Found Terrabomb 13818 | -3/Quarantine | Found Prototype Device 13818 | -3/Quarantine | Identified Adv. Kinecellerator 13926 | -3/Quarantine | Found Prototype Launcher 13926 | -3/Quarantine | Identified Com. Tesla Bomb Launcher 13931 | -3/Quarantine | Found Prototype Launcher 13931 | -3/Quarantine | Identified Hellfire Missile Launcher 14088 | -3/Quarantine | Destroyed 8 combat bots 14129 | -3/Quarantine | Lost 8 parts (2n6w) 14164 | -3/Quarantine | Found Fusion Bomb Launcher 14268 | -3/Quarantine | Lost 3 parts (2n1w) 14457 | -3/Quarantine | System corruption reached 10% 14483 | -3/Quarantine | Lost 4 parts (1n1u2w) 14547 | -3/Quarantine | Found Alien Artifact 14551 | -3/Quarantine | Found Alien Artifact 14554 | -3/Quarantine | Found Alien Artifact 14557 | -3/Quarantine | Found Alien Artifact 14571 | -3/Quarantine | Found Alien Artifact 14571 | -3/Quarantine | Identified Dimensional Node Initializer 14571 | -3/Quarantine | Initialized slip node 14573 | -3/Quarantine | Identified Transdimensional Reconstructor (x4) 14573 | -3/Quarantine | Warped through subspace to slip node 14576 | -3/Quarantine | Found Dimensional Node Initializer 14579 | -3/Quarantine | Found Dimensional Node Initializer 14662 | -3/Quarantine | Cryocooling Duct disabled 14677 | -3/Quarantine | Ambient heat levels rising (+20) 14677 | -3/Quarantine | Non-combat units ordered to evacuate 14830 | -3/Quarantine | Found Alien Artifact 14830 | -3/Quarantine | Identified Phase Armor 15070 | -3/Quarantine | Cryocooling Duct disabled 15074 | -3/Quarantine | Cryocooling Duct disabled 15085 | -3/Quarantine | Ambient heat levels rising (+20) 15085 | -3/Quarantine | Combat units ordered to evacuate 15089 | -3/Quarantine | Ambient heat levels rising (+20) 15136 | -3/Quarantine | Found Alien Artifact 15148 | -3/Quarantine | Discovered new exit (range 8) 15181 | -3/Quarantine | Identified Core Reset Matrix 15181 | -3/Quarantine | Used Core Reset Matrix 15185 | -3/Quarantine | Quarantine Guard activated 15185 | -3/Quarantine | Detected hypermatrix surge 15185 | -3/Quarantine | Sensed 3 artifacts in vicinity 15190 | -3/Quarantine | Spotted Quarantine Guard 15190 | -3/Quarantine | Spotted Quarantine Guard 15190 | -3/Quarantine | Spotted Quarantine Guard 15190 | -3/Quarantine | Spotted Quarantine Guard 15199 | -3/Quarantine | Destroyed Quarantine Guard 15201 | -3/Quarantine | Spotted Quarantine Guard 15201 | -3/Quarantine | Spotted Quarantine Guard 15203 | -3/Quarantine | Spotted Quarantine Guard 15210 | -3/Quarantine | Spotted Quarantine Guard 15210 | -3/Quarantine | Discovered new exit (range 16) 15210 | -3/Quarantine | Spotted Quarantine Guard 15210 | -3/Quarantine | Spotted Quarantine Guard 15210 | -3/Quarantine | Spotted Quarantine Guard 15210 | -3/Quarantine | Spotted Quarantine Guard 15212 | -3/Quarantine | Core integrity fell below 50% 15215 | -3/Quarantine | Warped through subspace to slip node 15245 | -3/Quarantine | Lost 7 parts (1p2n4w) 15422 | -3/Quarantine | Found Core Stripper 15493 | -3/Quarantine | Destroyed Quarantine Guard 15521 | -3/Quarantine | Destroyed Quarantine Guard 15582 | -3/Quarantine | Destroyed Quarantine Guard 15613 | -3/Quarantine | Lost 3 parts (1p2n) 15723 | -3/Quarantine | Destroyed Quarantine Guard 15981 | -3/Quarantine | Destroyed Quarantine Guard 16027 | -3/Quarantine | Destroyed Quarantine Guard 16049 | -3/Quarantine | Lost 4 parts (1p2n1w) 16239 | -3/Quarantine | Met incapacitated Sigix Warrior 16239 | -3/Quarantine | Lockdown squad dispatched 16248 | -3/Quarantine | Acquired the access code to the Sigix quarantine chamber 16252 | -3/Quarantine | Unlocked Sigix quarantine chamber 16262 | -3/Quarantine | Found Sigix Containment Pod 16342 | -3/Quarantine | Spotted Lightning 16439 | -3/Quarantine | Destroyed Quarantine Guard 16656 | -3/Quarantine | Build established: Executioner 16657 | -3/Quarantine | Found Subatomic Replicator 16992 | -3/Quarantine | Destroyed Quarantine Guard 16993 | -3/Quarantine | Core integrity fell below 20% 17028 | -3/Quarantine | System corruption reached 30% 17127 | -3/Quarantine | Entered Research 17127 | -2/Research | Evolved 2 slots: Weapon x2 17143 | -2/Research | Build established: Scavenger-Executioner 17305 | -2/Research | System corruption reached 10% 17407 | -2/Research | Destroyed 7 combat bots 17627 | -2/Research | First assault squad dispatched 17705 | -2/Research | Spotted B-90 Cyclops 17705 | -2/Research | Used Subatomic Replicator to replicate Field Lobotomy Kit 17712 | -2/Research | Assimilated B-90 Cyclops with FLK Orb 17866 | -2/Research | System corruption reached 30% 17961 | -2/Research | Found Fusion Bomb Launcher 18074 | -2/Research | Discovered new exit (range 9) 18078 | -2/Research | Assimilated H-81 Overseer with FLK Orb 18116 | -2/Research | Lost 11 parts (1p2n8w) 18163 | -2/Research | Entered Access 18163 | -1/Access | Evolved 2 slots: Propulsion x1, Weapon x1 18192 | -1/Access | Lost 11 parts (1p3n1u6w) 18244 | -1/Access | Used Terrabomb 18244 | -1/Access | Spotted B-99 Colossus 18245 | -1/Access | Self-destructed Last Messages --------------- 18194_ Penetrated by Slug. 18194_ Adv. Heat Sink destroyed. 18217_ Slug penetrates Wall. 18235_ Acquired Unknown Device. 18235_ Identified Point Defense System. 18236_ Slug penetrates Wall. 18238_ Myomer Leg destroyed. 18238_ Slug penetrates Door. 18240_ Slug penetrates Wall. 18243_ Wall collapses. 18243_ Slug penetrates Wall. 18244_ Terrabomb activated. 18244_ Slug penetrates Terminal. 18244_ Penetrated by Slug. 18244_ Slug penetrates H-88 Terminator. 18244_ Penetrated by Slug. 18244_ O-32 Director: "IFF HANDSHAKE FAILED. SECURING TERMINAL." 18244_ Slug penetrates Terminal. 18244_ Hvy. Flak Cannon destroyed. 18245_ U-05 Engineer builds a Wall. Map ----- +----------------------------------------------------+ | ?????????????????????????????????????????????????? | | ###################??????????????????????????????? | | ?????????????????????????????? | | ??????????????????????????????? | | ?????????????????????????????? | | ?????????????????????????????? | | ????????????????????????????? | | ????????????????????????????? | | ????????????????????????????? | | ######+########??????????????????????????????????? | | # #????????? ?????????????????????? | | # #??????? ???????????????????? | | # #??? ; ????????????????? | | # #?# # = ; ??????????????? | | # """""# ; u; ; ????????????? | | # """""# ; ; ; ????????????? | | # """""; ;h ; ; ;;;???????????? | | # """""; ; ; [[! ; ; B???????????? | | # """""; ; t ; [[ ; ; BB??????????? | | # ; ; ; [! o ; ;;; ??????????? | | # ; ; ; ; ; ??????????? | | # ; ; ; ; ;k ?????????? | | ##########+;;; ; ;;;;;;;;;;;;;;;; ; ?????????? | | ; ; t; ; ; ????????? | | ??########R; ; ; ; ; ????????? | | ?????????# ; ; ; @ ;;; ????????? | | ?????????# ; ;k ; +?????????????? | | ?????????# ; ; ; """ """ ;;; ??????????? | | ?????????# ; ; h ; """T""" ; ; ?????????? | | ?????#####+;;;;; hhh;;;;;;;;;;;;;;;; ; ?????????? | | ?????# ; ; ;;;?+??????????? | | ?????# ; h; ???????????????? | | ?????# " ! ; ; ????????????????? | | ?????# """ + ; ?????????????????? | | ?????# """ # ; ????????????????? | | ?????# " # #? ????????????????? | | ?????# # #???;;;?;;;;?????????????????? | | ?????# # ?????? ???????????????????? | | ?????########### ??????????????????????????? | | ???????????????# ????????????????????????? | | ???????????????# ???????????????????????? | | ???????????????# #######??????????????????????? | | ???????????????# #????????????????????????????? | | ???????????????# #????????????????????????????? | | ???????????????# #????????????????????????????? | | ???????????????# #????????????????????????????? | | ???????????????? #????????????????????????????? | | ???????????????? #????????????????????????????? | | ???????????????? ??????????????????????????????? | | ?????????????????????????????????????????????????? | +----------------------------------------------------+ Best States ------------- Heat Dissipation 127 Coolant Potential 120 Energy Generation 45 Energy Capacity 600 Matter Stores 300 Matter Capacity 700 Sight Range 16 Robot Scan Range 14 Terrain Scan Density 10 Jamming Range 16 Base Temperature (-) 200 Armor Coverage 225 Resistance: KI 30 Weapon Shielding 66 Point Defense Rating 80 Evasion (%) 55 Target Analysis 12 Recoil Reduction 6 Offensive Hacking 20 Defensive Hacking 12 Item Schematics ----------------- Adv. Cryofiber Web | -3/Quarantine | Scanalyzed Robot Schematics ------------------ None Fabricated ------------ Prc. Beam Rifle | x1 | -6/Factory Prc. Beam Rifle | x1 | -6/Factory Repaired ---------- Coolant Injector | 25% | -7/Factory Carbon-fiber Leg | 19% | -6/Factory Myomer Leg | 2% | -3/Quarantine Studied --------- None Alien Tech Used ----------------- Terrabomb Dimensional Node Initializer Transdimensional Reconstructor Phase Armor Core Reset Matrix Core Stripper Subatomic Replicator Achievements -------------- Blue Mage Pyromaniac Sunderer Challenges ------------ None Game ------ Seed TachyonDrainedCapacitor Manual? 0 Play Time 03:57:43 Cumulative 214.9 hours Start 2025.11.05 @ 01:41:48 End 2025.11.05 @ 10:34:33 Sessions 3 Manual Loads 0 Difficulty Rogue Special Mode None Game No. 221 Rogue 217 Adventurer 3 Explorer 1 Win Type - Total 1 Types 1/0/0/0/0/0/0/0/0/0 Lore% 72 Gallery% 73 Achievement% 55 Wizard Run 0 Options --------- Layout 0 ASCII 0 Keyboard 0 Movement Mouse Keybinds 0 Fullscreen 2 Font 18/SmallcapsGlow Map View 76x50 Zoom Use 0% Tactical HUD 1 Map Filters NONE Filters NONE Steam 1 RUN: f76e6009-fcd1-4e84-83c7-a8ad71073a66